fUST/lending_fUST_20241119
["ID","MTS","AMOUNT","RATE_DAILY","PERIOD"]
[342558130,1731964232817,-283.27021909,0.00024948,2]
[342558132,1731964232827,-372.38307837,0.00024948,2]
[342558134,1731964232836,-5000.0,0.00024968,2]
[342558136,1731964232846,-300.0,0.00025,2]
[342558138,1731964232855,-271.0,0.00025,2]
[342558141,1731964232865,-300.0,0.000251,2]
[342558142,1731964232875,-1058.64,0.00025112,2]
[342558144,1731964232885,-500.0,0.00025201,2]
[342558146,1731964232894,-879.579808,0.00025284,7]
[342558148,1731964232904,-879.579808,0.00025284,7]
[342558149,1731964232914,-151.0,0.00025284,7]
[342558150,1731964232923,-1058.64,0.00025386,2]
[342558152,1731964232933,-500.0,0.00025475,2]
[342558154,1731964232943,-1058.64,0.0002566,2]
[342558155,1731964232956,-500.0,0.00025749,2]
[342558157,1731964232966,-249.79711005,0.00025881,2]
[342558158,1731964232976,-1058.64,0.00025933,2]
[342558159,1731964232985,-500.0,0.00026023,2]
[342558160,1731964232995,-300.0,0.000261,2]
[342558161,1731964233005,-1058.64,0.00026207,2]
[342558162,1731964233014,-166.309838,0.00026274,2]
[342558163,1731964233024,-500.0,0.00026297,2]
[342558164,1731964233034,-426.905,0.00026464,2]
[342558165,1731964233043,-1058.64,0.00026481,2]
[342558166,1731964233054,-2692.07,0.0002657,2]
[342558167,1731964233064,-303.47306663,0.00026571,2]
[342558168,1731964233074,-240.1,0.000266,7]
[342558169,1731964233084,-1058.64,0.00026755,2]
[342558170,1731964233094,-249.79711005,0.00026934,2]
[342558171,1731964233104,-1058.81220568,0.00027029,2]
[342558172,1731964233113,-300.0,0.000271,2]
[342558173,1731964233123,-151.0,0.000279,7]
[342558174,1731964233132,-659.882055,0.000279,7]
[342558175,1731964233142,-659.882055,0.000279,7]
[342558176,1731964233151,-249.79711005,0.00027988,2]
[342558177,1731964233161,-300.0,0.000281,2]
[342558178,1731964233171,-187.779259,0.00028922,7]
[342558179,1731964233180,-879.579808,0.00028922,7]
[342558180,1731964233190,-879.579808,0.00028922,7]
[342558181,1731964233203,-151.0,0.00028922,7]
[342558182,1731964233220,-659.882055,0.00028922,7]
[342558183,1731964233230,-659.882055,0.00028922,7]
[342558184,1731964233242,-29553.73,0.0002898,10]
[342558185,1731964233252,-35464.47,0.0002899,10]
[342558186,1731964233261,-35973.201,0.00029,5]
[342558187,1731964233271,-1000.0,0.0002904,2]
[342558188,1731964233280,-330.0,0.0002904,2]
[342558189,1731964233290,-42632.02154481,0.00029041,2]
[342558190,1731964233299,-120298.63311873,0.00029041,2]
[342558191,1731964233310,-249.79711005,0.00029041,2]
[342558192,1731964233319,-1419.67437852,0.00029048,2]
[342558193,1731964233328,-500.0,0.00029073,5]
[342558194,1731964233338,-319.75307875,0.00029073,5]
[342558195,1731964233352,-500.0,0.00029073,5]
[342558196,1731964233362,-300.0,0.000291,2]
[342558197,1731964233372,-1415.07657699,0.0002914,2]
[342558198,1731964233383,-151.0,0.0002914,7]
[342558199,1731964233393,-151.0,0.0002914,7]
[342558200,1731964233403,-151.0,0.0002914,7]
[342558201,1731964233571,-151.0,0.0002914,7]
[342558202,1731964233583,-151.0,0.0002914,7]
[342558203,1731964233592,-151.0,0.0002914,7]
[342558204,1731964233603,-151.0,0.0002914,7]
[342558205,1731964233612,-151.0,0.0002914,7]
[342558206,1731964233622,-151.0,0.0002914,7]
[342558207,1731964233632,-151.0,0.0002914,7]
[342558208,1731964233642,-292.361566,0.0002914,7]
[342558209,1731964233652,-151.0,0.0002914,7]
[342558210,1731964233662,-151.0,0.0002914,7]
[342558211,1731964233672,-151.0,0.0002914,7]
[342558212,1731964233682,-151.0,0.0002914,7]
[342558213,1731964233691,-151.0,0.0002914,7]
[342558214,1731964233704,-151.0,0.0002914,7]
[342558215,1731964233714,-151.0,0.0002914,7]
[342558216,1731964233724,-151.0,0.0002914,7]
[342558217,1731964233734,-151.0,0.0002914,7]
[342558218,1731964233745,-151.0,0.0002914,7]
[342558219,1731964233754,-151.0,0.0002914,7]
[342558220,1731964233764,-255.771916,0.0002914,7]
[342558221,1731964233774,-198.28046,0.0002914,7]
[342558222,1731964233784,-198.28046,0.0002914,7]
[342558223,1731964233794,-198.28046,0.0002914,7]
[342558224,1731964233804,-198.28046,0.0002914,7]
[342558225,1731964233814,-198.28046,0.0002914,7]
[342558226,1731964233823,-198.28046,0.0002914,7]
[342558227,1731964233833,-198.28046,0.0002914,7]
[342558228,1731964233843,-198.28046,0.0002914,7]
[342558229,1731964233853,-198.28046,0.0002914,7]
[342558230,1731964233863,-198.28046,0.0002914,7]
[342558231,1731964233873,-198.28046,0.0002914,7]
[342558232,1731964233883,-198.28046,0.0002914,7]
[342558233,1731964233893,-198.28046,0.0002914,7]
[342558234,1731964233903,-198.28046,0.0002914,7]
[342558235,1731964233913,-198.28046,0.0002914,7]
[342558236,1731964233922,-198.28046,0.0002914,7]
[342558237,1731964233932,-198.28046,0.0002914,7]
[342558238,1731964233942,-198.28046,0.0002914,7]
[342558239,1731964233955,-198.28046,0.0002914,7]
[342558240,1731964233965,-198.280468,0.0002914,7]
[342558241,1731964233975,-151.0,0.0002914,7]
[342558242,1731964233985,-151.0,0.0002914,7]
[342558243,1731964233995,-157.95812,0.0002914,7]
[342558244,1731964234006,-151.0,0.00029141,7]
[342558245,1731964234017,-151.0,0.00029141,7]
[342558246,1731964234027,-151.0,0.00029141,7]
[342558247,1731964234038,-151.0,0.00029141,7]
[342558248,1731964234049,-151.0,0.00029141,7]
[342558249,1731964234059,-235.774482,0.00029141,7]
[342558250,1731964234069,-151.0,0.00029141,7]
[342558251,1731964234080,-151.0,0.00029141,7]
[342558252,1731964234089,-151.0,0.00029141,7]
[342558253,1731964234100,-211.501363,0.00029141,7]
[342558254,1731964234110,-151.0,0.00029141,7]
[342558255,1731964234120,-151.0,0.00029141,7]
[342558256,1731964234131,-151.0,0.00029141,7]
[342558257,1731964234142,-151.0,0.00029141,7]
[342558258,1731964234152,-210.493685,0.00029141,7]
[342558259,1731964234164,-151.0,0.00029141,7]
[342558260,1731964234178,-151.0,0.00029141,7]
[342558261,1731964234192,-151.0,0.00029141,7]
[342558262,1731964234208,-151.0,0.00029141,7]
[342558263,1731964234218,-151.0,0.00029141,7]
[342558264,1731964234229,-151.0,0.00029141,7]
[342558265,1731964234239,-281.22576,0.00029141,7]
[342558266,1731964234249,-362.321992,0.00029141,7]
[342558267,1731964234260,-362.321992,0.00029141,7]
[342558268,1731964234270,-362.321992,0.00029141,7]
[342558269,1731964234280,-362.321992,0.00029141,7]
[342558270,1731964234290,-362.321992,0.00029141,7]
[342558271,1731964234300,-362.321992,0.00029141,7]
[342558272,1731964234310,-362.321992,0.00029141,7]
[342558273,1731964234321,-362.321992,0.00029141,7]
[342558274,1731964234332,-362.321992,0.00029141,7]
[342558275,1731964234343,-362.321992,0.00029141,7]
[342558276,1731964234355,-362.321992,0.00029141,7]
[342558277,1731964234365,-362.321992,0.00029141,7]
[342558278,1731964234375,-362.321992,0.00029141,7]
[342558279,1731964234386,-362.321988,0.00029141,7]
[342558280,1731964234396,-879.579808,0.00029141,7]
[342558281,1731964234406,-879.579808,0.00029141,7]
[342558282,1731964234415,-879.579808,0.00029141,7]
[342558283,1731964234426,-879.579808,0.00029141,7]
[342558284,1731964234436,-879.579808,0.00029141,7]
[342558285,1731964234446,-879.579808,0.00029141,7]
[342558286,1731964234459,-879.579808,0.00029141,7]
[342558287,1731964234469,-879.579808,0.00029141,7]
[342558288,1731964234479,-879.579808,0.00029141,7]
[342558289,1731964234489,-879.579808,0.00029141,7]
[342558290,1731964234500,-879.579808,0.00029141,7]
[342558291,1731964234509,-879.579808,0.00029141,7]
[342558292,1731964234519,-879.579808,0.00029141,7]
[342558293,1731964234529,-879.579808,0.00029141,7]
[342558294,1731964234539,-879.579808,0.00029141,7]
[342558295,1731964234549,-879.57979981,0.00029141,7]
[342558296,1731964234558,-187.334411,0.00029141,7]
[342558297,1731964234568,-187.334411,0.00029141,7]
[342558298,1731964234577,-187.334411,0.00029141,7]
[342558299,1731964234587,-187.334411,0.00029141,7]
[342558300,1731964234596,-187.334411,0.00029141,7]
[342558301,1731964234606,-187.334411,0.00029141,7]
[342558302,1731964234615,-187.334411,0.00029141,7]
[342558303,1731964234626,-187.334411,0.00029141,7]
[342558304,1731964234636,-187.334411,0.00029141,7]
[342558305,1731964234646,-187.334411,0.00029141,7]
[342558306,1731964234656,-187.334411,0.00029141,7]
[342558307,1731964234665,-187.334411,0.00029141,7]
[342558308,1731964234675,-187.334411,0.00029141,7]
[342558309,1731964234686,-187.334411,0.00029141,7]
[342558310,1731964234695,-187.334411,0.00029141,7]
[342558311,1731964234709,-187.334411,0.00029141,7]
[342558312,1731964234719,-187.334411,0.00029141,7]
[342558313,1731964234729,-187.334411,0.00029141,7]
[342558314,1731964234738,-187.334411,0.00029141,7]
[342558315,1731964234748,-187.334408,0.00029141,7]
[342558316,1731964234758,-151.0,0.00029141,7]
[342558317,1731964234767,-204.825339,0.00029141,7]
[342558318,1731964234777,-659.882055,0.00029141,7]
[342558319,1731964234787,-659.882055,0.00029141,7]
[342558320,1731964234797,-659.882055,0.00029141,7]
[342558321,1731964234807,-659.882055,0.00029141,7]
[342558322,1731964234817,-659.882055,0.00029141,7]
[342558323,1731964234827,-659.882055,0.00029141,7]
[342558324,1731964234837,-659.882055,0.00029141,7]
[342558325,1731964234847,-659.882055,0.00029141,7]
[342558326,1731964234856,-659.882055,0.00029141,7]
[342558327,1731964234868,-659.882055,0.00029141,7]
[342558328,1731964234877,-659.882055,0.00029141,7]
[342558329,1731964234887,-659.882055,0.00029141,7]
[342558330,1731964234898,-659.882055,0.00029141,7]
[342558331,1731964234907,-659.882048,0.00029141,7]
[342558332,1731964234918,-163.21621,0.00029141,7]
[342558333,1731964234927,-163.21621,0.00029141,7]
[342558334,1731964234937,-163.21621,0.00029141,7]
[342558335,1731964234947,-163.21621,0.00029141,7]
[342558336,1731964234961,-163.21621,0.00029141,7]
[342558337,1731964234971,-163.21621,0.00029141,7]
[342558338,1731964234981,-163.21621,0.00029141,7]
[342558339,1731964234990,-163.21621,0.00029141,7]
[342558340,1731964235001,-163.21621,0.00029141,7]
[342558341,1731964235010,-163.21621,0.00029141,7]
[342558342,1731964235020,-163.21621,0.00029141,7]
[342558343,1731964235029,-163.21621,0.00029141,7]
[342558344,1731964235038,-163.21621,0.00029141,7]
[342558345,1731964235047,-163.21621,0.00029141,7]
[342558346,1731964235057,-163.21621,0.00029141,7]
[342558347,1731964235067,-163.21621,0.00029141,7]
[342558348,1731964235077,-163.21621,0.00029141,7]
[342558349,1731964235087,-163.21621,0.00029141,7]
[342558350,1731964235096,-163.21621,0.00029141,7]
[342558351,1731964235105,-163.216208,0.00029141,7]
[342558352,1731964235115,-500.0,0.00029141,5]
[342558353,1731964235124,-500.0,0.00029141,10]
[342558354,1731964235133,-150.09,0.00029141,10]
[342558355,1731964235143,-500.0,0.00029141,10]
[342558356,1731964235152,-150.09,0.00029141,2]
[342558357,1731964235162,-519.0,0.00029141,10]
[342558358,1731964235172,-432.993897,0.00029147,7]
[342558359,1731964235181,-432.993897,0.00029147,7]
[342558360,1731964235191,-432.993897,0.00029147,7]
[342558361,1731964235204,-432.993897,0.00029147,7]
[342558362,1731964235214,-432.993897,0.00029147,7]
[342558363,1731964235223,-432.993897,0.00029147,7]
[342558364,1731964235232,-432.993897,0.00029147,7]
[342558365,1731964235241,-432.993897,0.00029147,7]
[342558366,1731964235251,-432.993897,0.00029147,7]
[342558367,1731964235260,-432.993897,0.00029147,7]
[342558368,1731964235270,-432.993897,0.00029147,7]
[342558369,1731964235280,-432.993897,0.00029147,7]
[342558370,1731964235289,-432.993897,0.00029147,7]
[342558371,1731964235299,-151.0,0.00029147,7]
[342558372,1731964235309,-432.993897,0.00029147,7]
[342558373,1731964235318,-432.993897,0.00029147,7]
[342558374,1731964235328,-432.993897,0.00029147,7]
[342558375,1731964235338,-151.0,0.00029147,7]
[342558376,1731964235349,-432.993897,0.00029147,7]
[342558377,1731964235359,-151.0,0.00029147,7]
[342558378,1731964235368,-432.993897,0.00029147,7]
[342558379,1731964235378,-151.0,0.00029147,7]
[342558380,1731964235387,-432.993897,0.00029147,7]
[342558381,1731964235397,-151.0,0.00029147,7]
[342558382,1731964235407,-432.993896,0.00029147,7]
[342558383,1731964235416,-251.831845,0.00029147,7]
[342558384,1731964235428,-319.036635,0.00029147,7]
[342558385,1731964235438,-319.036635,0.00029147,7]
[342558386,1731964235447,-319.036635,0.00029147,7]
[342558387,1731964235460,-319.036635,0.00029147,7]
[342558388,1731964235470,-319.036635,0.00029147,7]
[342558389,1731964235479,-319.036635,0.00029147,7]
[342558390,1731964235488,-319.036635,0.00029147,7]
[342558391,1731964235498,-319.036635,0.00029147,7]
[342558392,1731964235508,-319.036635,0.00029147,7]
[342558393,1731964235518,-319.036635,0.00029147,7]
[342558394,1731964235527,-319.036635,0.00029147,7]
[342558395,1731964235536,-319.036635,0.00029147,7]
[342558396,1731964235546,-319.036635,0.00029147,7]
[342558397,1731964235556,-319.036635,0.00029147,7]
[342558398,1731964235566,-319.036635,0.00029147,7]
[342558399,1731964235575,-319.036635,0.00029147,7]
[342558400,1731964235584,-319.036635,0.00029147,7]
[342558401,1731964235593,-319.036635,0.00029147,7]
[342558402,1731964235602,-319.036635,0.00029147,7]
[342558403,1731964235611,-319.036627,0.00029147,7]
[342558404,1731964235620,-154.757354,0.00029147,7]
[342558405,1731964235630,-154.757354,0.00029147,7]
[342558406,1731964235639,-154.757354,0.00029147,7]
[342558407,1731964235648,-154.757354,0.00029147,7]
[342558408,1731964235657,-154.757354,0.00029147,7]
[342558409,1731964235666,-154.757354,0.00029147,7]
[342558410,1731964235676,-154.757354,0.00029147,7]
[342558411,1731964235685,-154.757354,0.00029147,7]
[342558412,1731964235695,-154.757354,0.00029147,7]
[342558413,1731964235709,-154.757354,0.00029147,7]
[342558414,1731964235718,-154.757354,0.00029147,7]
[342558415,1731964235727,-154.757354,0.00029147,7]
[342558416,1731964235736,-154.757354,0.00029147,7]
[342558417,1731964235746,-154.757354,0.00029147,7]
[342558418,1731964235756,-154.757354,0.00029147,7]
[342558419,1731964235765,-154.757354,0.00029147,7]
[342558420,1731964235775,-154.757354,0.00029147,7]
[342558421,1731964235785,-154.757354,0.00029147,7]
[342558422,1731964235795,-154.757354,0.00029147,7]
[342558423,1731964235805,-154.757354,0.00029147,7]
[342558424,1731964235815,-151.0,0.00029147,7]
[342558425,1731964235824,-151.0,0.00029147,7]
[342558426,1731964235834,-151.0,0.00029147,7]
[342558427,1731964235843,-151.0,0.00029147,7]
[342558428,1731964235855,-151.0,0.00029147,7]
[342558429,1731964235868,-151.0,0.00029147,7]
[342558430,1731964235877,-151.0,0.00029147,7]
[342558431,1731964235886,-151.0,0.00029147,7]
[342558432,1731964235895,-151.0,0.00029147,7]
[342558433,1731964235904,-214.362736,0.00029147,7]
[342558434,1731964235914,-151.0,0.00029147,7]
[342558435,1731964235924,-151.0,0.00029147,7]
[342558436,1731964235933,-151.0,0.00029147,7]
[342558437,1731964235942,-151.0,0.00029147,7]
[342558438,1731964235955,-151.0,0.00029147,7]
[342558439,1731964235965,-151.0,0.00029147,7]
[342558440,1731964235974,-151.0,0.00029147,7]
[342558441,1731964235984,-151.0,0.00029147,7]
[342558442,1731964235993,-243.192664,0.00029147,7]
[342558443,1731964236003,-151.0,0.00029147,7]
[342558444,1731964236013,-151.0,0.00029147,7]
[342558445,1731964236022,-151.0,0.00029147,7]
[342558446,1731964236032,-151.0,0.00029147,7]
[342558447,1731964236041,-151.0,0.00029147,7]
[342558448,1731964236051,-151.0,0.00029147,7]
[342558449,1731964236061,-151.0,0.00029147,7]
[342558450,1731964236070,-151.0,0.00029147,7]
[342558451,1731964236080,-151.0,0.00029147,7]
[342558452,1731964236090,-151.0,0.00029147,7]
[342558453,1731964236099,-151.0,0.00029147,7]
[342558454,1731964236109,-261.1224,0.00029147,7]
[342558455,1731964236119,-151.0,0.00029148,7]
[342558456,1731964236129,-151.0,0.00029148,7]
[342558457,1731964236138,-151.0,0.00029148,7]
[342558458,1731964236148,-151.0,0.00029148,7]
[342558459,1731964236158,-214.77431105,0.00029148,7]
[342558460,1731964236168,-653.595639,0.00029148,7]
[342558461,1731964236178,-653.595639,0.00029148,7]
[342558462,1731964236188,-653.595639,0.00029148,7]
[342558463,1731964236200,-653.595639,0.00029148,7]
[342558464,1731964236210,-653.595639,0.00029148,7]
[342558465,1731964236220,-653.595639,0.00029148,7]
[342558466,1731964236230,-653.595639,0.00029148,7]
[342558467,1731964236240,-653.595639,0.00029148,7]
[342558468,1731964236250,-653.595639,0.00029148,7]
[342558469,1731964236260,-653.595639,0.00029148,7]
[342558470,1731964236270,-653.595639,0.00029148,7]
[342558471,1731964236280,-653.595639,0.00029148,7]
[342558472,1731964236290,-653.595639,0.00029148,7]
[342558473,1731964236299,-653.595639,0.00029148,7]
[342558474,1731964236309,-653.595639,0.00029148,7]
[342558475,1731964236319,-653.595639,0.00029148,7]
[342558476,1731964236328,-653.595639,0.00029148,7]
[342558477,1731964236338,-653.595639,0.00029148,7]
[342558478,1731964236352,-653.595639,0.00029148,7]
[342558479,1731964236362,-653.595641,0.00029148,7]
[342558480,1731964236372,-1321.52139309,0.00029148,2]
[342558481,1731964236381,-276.16853824,0.00029148,2]
[342558482,1731964236393,-182480.26654316,0.00029148,10]
[342558483,1731964236576,-13627.88347118,0.00029148,10]
[342558500,1731964238096,-831.82,0.00024763,15]
[342558501,1731964238106,-500.0,0.0002904,2]
[342558502,1731964238115,-482.56598869,0.0002904,2]
[342558503,1731964238125,-524.27992625,0.00029148,10]
[342558504,1731964238139,-14432.82442696,0.00029148,10]
[342558511,1731964239892,-24628.1,0.00029138,10]
[342558512,1731964239903,-171067.25199874,0.00029148,10]
[342558531,1731964242999,-834.26,0.00024763,15]
[342558532,1731964243008,-1172.36140979,0.00029148,10]
[342558533,1731964243658,-5003.04002514,0.00029148,10]
[342558534,1731964243670,-18318.2372994,0.00029148,10]
[342558535,1731964243684,-1246.72017249,0.00029148,10]
[342558543,1731964246060,-28467.79249829,0.00029148,10]
[342558546,1731964246120,-9101.8,0.00029148,10]
[342558548,1731964718493,5000.0,0.0002002,14]
[342558549,1731964734735,179.761,0.0002002,14]
[342558551,1731965143158,-166.309838,0.00013973,2]
[342558552,1731965143183,-266.35813205,0.00019999,2]
[342558553,1731965158098,-33.64186795,0.00019999,2]
[342558554,1731965158122,-300.0,0.00019999,2]
[342558555,1731965158143,-301.51035123,0.0002,2]
[342558557,1731965233121,-268.1009802,0.000199,2]
[342558558,1731965233144,-164.582046,0.00019999,2]
[342558561,1731965351100,-1331.86821802,0.00015,7]
[342558562,1731965351231,-290.49751383,0.00015,7]
[342558563,1731965351252,-395.69996,0.0001999,2]
[342558564,1731965351273,-300.0,0.00019999,2]
[342558565,1731965351299,-300.0,0.00019999,2]
[342558566,1731965351320,-6714.11464877,0.0002,2]
[342558567,1731965351345,-304.49937452,0.0002,7]
[342558568,1731965351365,-5236.01329674,0.0002,2]
[342558569,1731965351385,-200.0,0.0002,2]
[342558570,1731965351405,-174.286383,0.0002024,2]
[342558571,1731965351425,-2031.8255547,0.00020302,2]
[342558572,1731965351445,-500.0,0.00021044,2]
[342558573,1731965351466,-500.0,0.00021044,2]
[342558574,1731965351486,-500.0,0.00021044,2]
[342558575,1731965351508,-24900.0,0.00021045,2]
[342558576,1731965351529,-500.0,0.00021318,2]
[342558577,1731965351549,-221.86,0.00021592,2]
[342558578,1731965351571,-268.18577569,0.00021677,2]
[342558579,1731965351599,-420.0,0.00021777,2]
[342558580,1731965351619,-532.06164922,0.00021886,2]
[342558581,1731965351639,-150.0,0.000219,2]
[342558582,1731965351659,-241.33762016,0.00021914,2]
[342558583,1731965351680,-500.0,0.00021914,2]
[342558584,1731965351704,-500.0,0.00021914,2]
[342558585,1731965351726,-500.0,0.00021914,2]
[342558586,1731965351748,-500.0,0.00021914,2]
[342558587,1731965351770,-500.0,0.00021914,2]
[342558588,1731965351795,-500.0,0.00021914,2]
[342558589,1731965351817,-500.0,0.00021914,2]
[342558590,1731965351840,-500.0,0.00021914,2]
[342558591,1731965351861,-499.99999999,0.00021914,2]
[342558592,1731965351881,-500.0,0.00021914,2]
[342558593,1731965351903,-500.0,0.00021914,2]
[342558594,1731965351927,-500.0,0.00021914,2]
[342558595,1731965351951,-500.0,0.00021914,2]
[342558596,1731965351974,-500.0,0.00021914,2]
[342558597,1731965351996,-500.0,0.00021914,2]
[342558598,1731965352017,-500.0,0.00021914,2]
[342558599,1731965352037,-500.0,0.00021915,2]
[342558600,1731965352058,-500.0,0.00021915,2]
[342558601,1731965352079,-500.0,0.00021915,2]
[342558602,1731965352102,-500.0,0.00021915,2]
[342558603,1731965352122,-500.0,0.00021915,2]
[342558604,1731965352144,-500.0,0.00021915,2]
[342558605,1731965352165,-500.0,0.00021915,2]
[342558606,1731965352187,-500.0,0.00021915,2]
[342558607,1731965352209,-500.0,0.00021915,2]
[342558608,1731965352230,-500.0,0.00021915,2]
[342558609,1731965352251,-500.0,0.00021915,2]
[342558610,1731965352272,-500.0,0.00021915,2]
[342558611,1731965352294,-500.0,0.00021915,2]
[342558612,1731965352314,-500.0,0.00021915,2]
[342558613,1731965352337,-500.0,0.00021915,2]
[342558614,1731965352358,-500.0,0.00021915,2]
[342558615,1731965352378,-500.0,0.00021915,2]
[342558616,1731965352399,-500.0,0.00021915,2]
[342558617,1731965352420,-500.0,0.00021915,2]
[342558618,1731965352442,-500.0,0.00021915,2]
[342558619,1731965352464,-500.0,0.00021915,2]
[342558620,1731965352485,-500.0,0.00021915,2]
[342558621,1731965352506,-500.0,0.00021915,2]
[342558622,1731965352527,-500.0,0.00021915,2]
[342558623,1731965352549,-500.0,0.00021915,2]
[342558624,1731965352570,-500.0,0.00021915,2]
[342558625,1731965352594,-500.0,0.00021915,2]
[342558626,1731965352613,-500.0,0.00021915,2]
[342558627,1731965352631,-500.0,0.00021915,2]
[342558628,1731965352650,-500.0,0.00021915,2]
[342558629,1731965352669,-500.0,0.00021915,2]
[342558630,1731965352688,-500.0,0.00021915,2]
[342558631,1731965352711,-500.0,0.00021915,2]
[342558632,1731965352729,-500.0,0.00021915,2]
[342558633,1731965352748,-500.0,0.00021915,2]
[342558634,1731965352768,-500.0,0.00021915,2]
[342558635,1731965352787,-500.0,0.00021915,2]
[342558636,1731965352804,-500.0,0.00021915,2]
[342558637,1731965352820,-500.0,0.00021915,2]
[342558638,1731965352840,-500.0,0.00021915,2]
[342558639,1731965352863,-500.0,0.00021915,2]
[342558640,1731965352883,-500.0,0.00021915,2]
[342558641,1731965352904,-500.0,0.00021915,2]
[342558642,1731965352924,-500.0,0.00021916,2]
[342558643,1731965352945,-500.0,0.00021916,2]
[342558644,1731965352969,-500.0,0.00021916,2]
[342558645,1731965352989,-500.0,0.00021916,2]
[342558646,1731965353009,-374.2,0.00021916,2]
[342558647,1731965353171,-265.25,0.00021916,2]
[342558648,1731965353194,-960.60966236,0.00021917,2]
[342558649,1731965353216,-214.0,0.00021999,2]
[342558650,1731965353237,-192.0,0.00022,2]
[342558651,1731965353258,-7382.51143558,0.00022,30]
[342558652,1731965353279,-560.71539996,0.00022,2]
[342558653,1731965358705,280.0938,0.00021044,2]
[342558710,1731965432301,-219.9062,0.00021044,2]
[342558712,1731965432311,-500.0,0.00021044,2]
[342558714,1731965432322,-500.0,0.00021318,2]
[342558716,1731965432331,-30.65822524,0.00021592,2]
[342558779,1731965438240,-397.17177476,0.00021592,2]
[342558780,1731965438250,-260.24,0.000219,2]
[342558781,1731965438260,-405.14105516,0.00021914,2]
[342558782,1731965438273,-59.98894484,0.00021914,2]
[342558783,1731965438282,-982.05867078,0.00022,2]
[342558784,1731965438294,-302.64798415,0.00022,2]
[342558785,1731965438326,-327.595,0.00022,2]
[342558798,1731965438608,-70.5724688,0.00022,2]
[342558799,1731965438636,-415.99012375,0.00022,2]
[342558800,1731965438645,-224.32,0.00022188,2]
[342558801,1731965438654,-337.2,0.00022188,2]
[342558802,1731965438663,-512.34,0.00022188,2]
[342558803,1731965438672,-500.0,0.00022188,2]
[342558804,1731965438683,-500.0,0.00022188,2]
[342558805,1731965438692,-192.0,0.00022192,2]
[342558806,1731965438701,-54.49186553,0.00022475,2]
[342558807,1731965438713,-1813.56644597,0.00022475,2]
[342558808,1731965438724,-192.0,0.00023014,2]
[342558809,1731965438738,-169.327,0.00023902,5]
[342558810,1731965438747,-198.0,0.00024164,2]
[342558811,1731965438757,-12210.6389011,0.0002499,10]
[342558826,1731965441825,-3271.81767709,0.0002499,10]
[342558829,1731965441838,-5525.70342181,0.0002499,10]
[342558830,1731965441848,-17506.8,0.0002499,10]
[342558832,1731965441857,-500.0,0.00024999,2]
[342558834,1731965441870,-187.79619208,0.00024999,2]
[342558836,1731965441879,-1380.08870606,0.00025,2]
[342558837,1731965441890,-13848.31558424,0.00025,2]
[342558838,1731965441905,-5822.29539155,0.00025,2]
[342558839,1731965441918,-1581.6076105,0.00025,2]
[342558840,1731965441930,-1268.41937026,0.00025,2]
[342558841,1731965441943,-3290.01473372,0.00025,2]
[342558860,1731965443181,-306.24798982,0.00025,2]
[342558861,1731965443414,-40169.85511796,0.00025,2]
[342558862,1731965443426,-1040.55656145,0.00025,2]
[342558882,1731966427257,-165.96428,0.00013973,2]
[342558883,1731966427278,-164.23428692,0.0002,2]
[342558890,1731966567115,-264.91734272,0.0002,2]